fUSD/lending_fUSD_20251001
["ID","MTS","AMOUNT","RATE_DAILY","PERIOD"]
[388646476,1759296668982,-500.0,0.00024657,2]
[388646477,1759296668992,-500.0,0.00024657,2]
[388646478,1759296669001,-500.0,0.00024657,2]
[388646479,1759296669012,-283.41777023,0.00024657,2]
[388646480,1759296669022,-691.01,0.00024657,2]
[388646481,1759296669031,-500.0,0.00024657,2]
[388646482,1759296669041,-500.0,0.00024657,2]
[388646483,1759296669051,-500.0,0.00024657,2]
[388646484,1759296669060,-500.0,0.00024657,2]
[388646485,1759296669070,-500.0,0.00024657,2]
[388646486,1759296669080,-500.0,0.00024657,2]
[388646487,1759296669090,-500.0,0.00024657,2]
[388646488,1759296669101,-335.59764905,0.00024657,2]
[388646489,1759296669111,-500.0,0.00024657,2]
[388646490,1759296669121,-500.0,0.00024657,2]
[388646491,1759296669131,-153.00675753,0.00024657,2]
[388646492,1759296669140,-500.0,0.00024657,2]
[388646493,1759296669150,-500.0,0.00024657,2]
[388646494,1759296669160,-500.0,0.00024657,2]
[388646495,1759296669170,-500.0,0.00024657,2]
[388646496,1759296669179,-500.0,0.00024657,2]
[388646497,1759296669190,-474.28584464,0.00024657,2]
[388646498,1759296669200,-500.0,0.00024657,2]
[388646499,1759296669210,-1280.7,0.00024657,2]
[388646500,1759296669220,-500.0,0.00024657,2]
[388646501,1759296669230,-500.0,0.00024657,2]
[388646502,1759296669239,-500.0,0.00024657,2]
[388646503,1759296669249,-500.0,0.00024657,2]
[388646504,1759296669258,-500.0,0.00024657,2]
[388646505,1759296669268,-500.0,0.00024657,2]
[388646506,1759296669277,-500.0,0.00024657,2]
[388646507,1759296669287,-500.0,0.00024657,2]
[388646508,1759296669298,-500.0,0.00024657,2]
[388646509,1759296669307,-500.0,0.00024657,2]
[388646510,1759296669317,-500.0,0.00024657,2]
[388646511,1759296669327,-500.0,0.00024657,2]
[388646512,1759296669336,-793.12,0.00024657,2]
[388646513,1759296669346,-533.14,0.00024657,2]
[388646514,1759296669355,-500.0,0.00024657,2]
[388646515,1759296669366,-500.0,0.00024657,2]
[388646516,1759296669375,-500.0,0.00024657,2]
[388646517,1759296669384,-988.41,0.00024657,2]
[388646518,1759296669394,-500.0,0.00024657,2]
[388646519,1759296669408,-963.61,0.00024657,2]
[388646520,1759296669419,-500.0,0.00024657,2]
[388646521,1759296669429,-500.0,0.00024657,2]
[388646522,1759296669439,-500.0,0.00024657,2]
[388646523,1759296669449,-500.0,0.00024657,2]
[388646524,1759296669459,-2382.35,0.00024657,2]
[388646525,1759296669469,-595.2,0.00024657,2]
[388646526,1759296669480,-500.0,0.00024657,2]
[388646527,1759296669490,-500.0,0.00024657,2]
[388646528,1759296669500,-500.0,0.00024657,2]
[388646529,1759296669510,-660.38,0.00024657,2]
[388646530,1759296669521,-500.0,0.00024657,2]
[388646531,1759296669531,-500.0,0.00024657,2]
[388646532,1759296669541,-1927.27,0.00024657,2]
[388646533,1759296669551,-1610.83,0.00024657,2]
[388646534,1759296669561,-508.86,0.00024657,2]
[388646535,1759296669570,-1827.82,0.00024657,2]
[388646536,1759296669580,-456.98152735,0.00024657,2]
[388646537,1759296669590,-500.0,0.00024657,2]
[388646538,1759296669600,-836.97,0.00024657,2]
[388646539,1759296669610,-695.66,0.00024657,2]
[388646540,1759296669619,-594.96143783,0.00024657,2]
[388646541,1759296669629,-500.0,0.00024657,2]
[388646542,1759296669639,-1372.85,0.00024657,2]
[388646543,1759296669648,-500.0,0.00024657,2]
[388646544,1759296669658,-500.0,0.00024657,2]
[388646545,1759296669673,-1444.2,0.00024657,2]
[388646546,1759296669683,-500.0,0.00024657,2]
[388646547,1759296669692,-1636.67,0.00024657,2]
[388646548,1759296669702,-500.0,0.00024657,2]
[388646549,1759296669714,-500.0,0.00024657,2]
[388646550,1759296669723,-500.0,0.00024657,2]
[388646551,1759296669733,-500.0,0.00024657,2]
[388646552,1759296669746,-1416.02,0.00024657,2]
[388646553,1759296669756,-500.0,0.00024657,2]
[388646554,1759296669770,-500.0,0.00024657,2]
[388646555,1759296669781,-500.0,0.00024657,2]
[388646556,1759296669792,-500.0,0.00024657,2]
[388646557,1759296669802,-500.61414993,0.00024657,2]
[388646558,1759296669812,-500.0,0.00024657,2]
[388646559,1759296669822,-1611.96,0.00024657,2]
[388646560,1759296669832,-500.0,0.00024657,2]
[388646561,1759296669843,-797.04,0.00024657,2]
[388646562,1759296669853,-500.0,0.00024657,2]
[388646563,1759296669863,-500.0,0.00024657,2]
[388646564,1759296669872,-1160.56,0.00024657,2]
[388646565,1759296669882,-500.0,0.00024657,2]
[388646566,1759296669891,-500.0,0.00024657,2]
[388646567,1759296669901,-500.0,0.00024657,2]
[388646568,1759296669911,-1416.84,0.00024657,2]
[388646569,1759296669922,-500.0,0.00024657,2]
[388646570,1759296669933,-500.0,0.00024657,2]
[388646571,1759296669943,-500.0,0.00024657,2]
[388646572,1759296669953,-500.0,0.00024657,2]
[388646573,1759296669963,-806.33,0.00024657,2]
[388646574,1759296669973,-399.03928346,0.00024657,2]
[388646575,1759296669983,-771.28,0.00024657,2]
[388646576,1759296669996,-500.0,0.00024657,2]
[388646577,1759296670006,-729.28,0.00024657,2]
[388646578,1759296670015,-1092.26,0.00024657,2]
[388646579,1759296670025,-500.0,0.00024657,2]
[388646580,1759296670035,-904.86,0.00024657,2]
[388646581,1759296670045,-2315.32,0.00024657,2]
[388646582,1759296670055,-768.88,0.00024657,2]
[388646583,1759296670064,-500.0,0.00024657,2]
[388646584,1759296670074,-500.0,0.00024657,2]
[388646585,1759296670084,-500.0,0.00024657,2]
[388646586,1759296670093,-995.33,0.00024657,2]
[388646587,1759296670103,-648.48,0.00024657,2]
[388646588,1759296670113,-732.87,0.00024657,2]
[388646589,1759296670123,-500.0,0.00024657,2]
[388646590,1759296670133,-504.39,0.00024657,2]
[388646591,1759296670143,-966.49,0.00024657,2]
[388646592,1759296670152,-500.78183996,0.00024657,2]
[388646593,1759296670162,-500.0,0.00024657,2]
[388646594,1759296670173,-500.0,0.00024657,2]
[388646595,1759296670183,-500.0,0.00024657,2]
[388646596,1759296670192,-500.0,0.00024657,2]
[388646597,1759296670203,-1296.8,0.00024657,2]
[388646598,1759296670213,-500.0,0.00024657,2]
[388646599,1759296670225,-894.14,0.00024657,2]
[388646600,1759296670235,-500.0,0.00024657,2]
[388646601,1759296670245,-954.51,0.00024657,2]
[388646602,1759296670256,-634.53,0.00024657,2]
[388646603,1759296670266,-387.62773479,0.00024657,2]
[388646604,1759296670276,-500.0,0.00024657,2]
[388646605,1759296670286,-500.0,0.00024657,2]
[388646606,1759296670298,-500.0,0.00024657,2]
[388646607,1759296670308,-1008.41,0.00024657,2]
[388646608,1759296670318,-893.53,0.00024657,2]
[388646609,1759296670327,-500.0,0.00024657,2]
[388646610,1759296670337,-500.0,0.00024657,2]
[388646611,1759296670346,-503.96775925,0.00024657,2]
[388646612,1759296670355,-500.0,0.00024657,2]
[388646613,1759296670365,-604.43,0.00024657,2]
[388646614,1759296670374,-512.42,0.00024657,2]
[388646615,1759296670384,-342.11305637,0.00024657,2]
[388646616,1759296670394,-500.0,0.00024657,2]
[388646617,1759296670403,-500.0,0.00024657,2]
[388646618,1759296670413,-500.0,0.00024657,2]
[388646619,1759296670423,-500.0,0.00024657,2]
[388646620,1759296670433,-592.48,0.00024657,2]
[388646621,1759296670443,-500.0,0.00024657,2]
[388646622,1759296670453,-500.0,0.00024657,2]
[388646623,1759296670463,-500.0,0.00024657,2]
[388646624,1759296670473,-500.0,0.00024657,2]
[388646625,1759296670483,-500.0,0.00024657,2]
[388646626,1759296670493,-500.0,0.00024657,2]
[388646627,1759296670503,-500.0,0.00024657,2]
[388646628,1759296670513,-503.8051665,0.00024657,2]
[388646629,1759296670524,-384.11771038,0.00024657,2]
[388646630,1759296670534,-500.0,0.00024657,2]
[388646631,1759296670544,-500.0,0.00024657,2]
[388646632,1759296670559,-500.0,0.00024657,2]
[388646633,1759296670576,-759.41,0.00024657,2]
[388646634,1759296670586,-575.67,0.00024657,2]
[388646635,1759296670596,-500.0,0.00024657,2]
[388646636,1759296670607,-500.0,0.00024657,2]
[388646637,1759296670617,-500.0,0.00024657,2]
[388646638,1759296670627,-500.0,0.00024657,2]
[388646639,1759296670637,-602.71715322,0.00024657,2]
[388646640,1759296670647,-777.56,0.00024657,2]
[388646641,1759296670657,-502.70385254,0.00024657,2]
[388646642,1759296670672,-500.0,0.00024657,2]
[388646643,1759296670682,-500.0,0.00024657,2]
[388646644,1759296670692,-500.0,0.00024657,2]
[388646645,1759296670703,-500.0,0.00024657,2]
[388646646,1759296670713,-500.0,0.00024657,2]
[388646647,1759296670722,-500.0,0.00024657,2]
[388646648,1759296670732,-500.0,0.00024657,2]
[388646649,1759296670743,-500.0,0.00024657,2]
[388646650,1759296670752,-500.0,0.00024657,2]
[388646651,1759296670762,-500.0,0.00024657,2]
[388646652,1759296670774,-500.0,0.00024657,2]
[388646653,1759296670783,-500.0,0.00024657,2]
[388646654,1759296670793,-500.0,0.00024657,2]
[388646655,1759296670803,-659.9,0.00024657,2]
[388646656,1759296670812,-666.22,0.00024657,2]
[388646657,1759296670822,-967.5,0.00024657,2]
[388646658,1759296670831,-500.0,0.00024657,2]
[388646659,1759296670841,-500.0,0.00024657,2]
[388646660,1759296670855,-500.0,0.00024657,2]
[388646661,1759296670865,-500.0,0.00024657,2]
[388646662,1759296670875,-500.0,0.00024657,2]
[388646663,1759296670884,-503.94320103,0.00024657,2]
[388646664,1759296670894,-500.0,0.00024657,2]
[388646665,1759296670904,-526.52,0.00024657,2]
[388646666,1759296670913,-500.0,0.00024657,2]
[388646667,1759296670924,-520.64,0.00024657,2]
[388646668,1759296670933,-500.0,0.00024657,2]
[388646669,1759296670943,-500.0,0.00024657,2]
[388646670,1759296670952,-3808.44,0.00024657,2]
[388646671,1759296670962,-500.0,0.00024657,2]
[388646672,1759296670972,-500.0,0.00024657,2]
[388646673,1759296670981,-500.0,0.00024657,2]
[388646674,1759296670991,-500.0,0.00024657,2]
[388646675,1759296671526,-192.06778137,0.00024657,2]
[388646676,1759296671538,-500.0,0.00024657,2]
[388646677,1759296671548,-500.0,0.00024657,2]
[388646678,1759296671557,-500.0,0.00024657,2]
[388646679,1759296671567,-695.02,0.00024657,2]
[388646680,1759296671578,-500.0,0.00024657,2]
[388646681,1759296671588,-1282.96,0.00024657,2]
[388646682,1759296671597,-500.0,0.00024657,2]
[388646683,1759296671607,-500.0,0.00024657,2]
[388646684,1759296671616,-755.69,0.00024657,2]
[388646685,1759296671626,-500.0,0.00024657,2]
[388646686,1759296671636,-500.0,0.00024657,2]
[388646687,1759296671646,-915.1,0.00024657,2]
[388646688,1759296671656,-2406.78,0.00024657,2]
[388646689,1759296671669,-500.0,0.00024657,2]
[388646690,1759296671678,-500.0,0.00024657,2]
[388646691,1759296671688,-500.0,0.00024657,2]
[388646692,1759296671697,-2589.25,0.00024657,2]
[388646693,1759296671707,-500.0,0.00024657,2]
[388646694,1759296671720,-500.0,0.00024657,2]
[388646695,1759296671730,-500.0,0.00024657,2]
[388646696,1759296671741,-500.0,0.00024657,2]
[388646697,1759296671752,-573.39,0.00024657,2]
[388646698,1759296671761,-500.0,0.00024657,2]
[388646699,1759296671772,-500.0,0.00024657,2]
[388646700,1759296671782,-500.0,0.00024657,2]
[388646701,1759296671792,-1153.21,0.00024657,2]
[388646702,1759296671801,-500.0,0.00024657,2]
[388646703,1759296671810,-500.0,0.00024657,2]
[388646704,1759296671819,-500.0,0.00024657,2]
[388646705,1759296671829,-1000.0,0.00024657,2]
[388646706,1759296671838,-4313.53,0.00024657,2]
[388646707,1759296671847,-500.0,0.00024657,2]
[388646708,1759296671856,-2308.67,0.00024657,2]
[388646709,1759296671866,-748.42,0.00024657,2]
[388646710,1759296671876,-500.0,0.00024657,2]
[388646711,1759296671885,-653.7,0.00024657,2]
[388646712,1759296671895,-3610.59,0.00024657,2]
[388646713,1759296671904,-1044.39,0.00024657,2]
[388646714,1759296671914,-571.37,0.00024657,2]
[388646715,1759296671923,-1515.23,0.00024657,2]
[388646716,1759296671933,-500.0,0.00024657,2]
[388646717,1759296671944,-500.0,0.00024657,2]
[388646718,1759296671954,-1007.33,0.00024657,2]
[388646719,1759296671963,-500.0,0.00024657,2]
[388646720,1759296671973,-500.0,0.00024657,2]
[388646721,1759296671982,-500.0,0.00024657,2]
[388646722,1759296671992,-500.0,0.00024657,2]
[388646723,1759296672001,-500.0,0.00024657,2]
[388646724,1759296672011,-751.37,0.00024657,2]
[388646725,1759296672021,-5603.21,0.00024657,2]
[388646726,1759296672031,-500.0,0.00024657,2]
[388646727,1759296672041,-500.0,0.00024657,2]
[388646728,1759296672051,-2888.61,0.00024657,2]
[388646729,1759296672060,-500.0,0.00024657,2]
[388646730,1759296672071,-500.0,0.00024657,2]
[388646731,1759296672085,-500.0,0.00024657,2]
[388646732,1759296672101,-160.90517752,0.00024657,2]
[388646733,1759296672112,-500.0,0.00024657,2]
[388646734,1759296672122,-500.0,0.00024657,2]
[388646735,1759296672132,-501.09147196,0.00024657,2]
[388646736,1759296672142,-500.0,0.00024657,2]
[388646737,1759296672152,-500.0,0.00024657,2]
[388646738,1759296672162,-1549.03,0.00024657,2]
[388646739,1759296672172,-500.0,0.00024657,2]
[388646740,1759296672182,-643.54945573,0.00024657,2]
[388646741,1759296672191,-2228.19,0.00024657,2]
[388646742,1759296672201,-518.65,0.00024657,2]
[388646743,1759296672211,-581.39690559,0.00024657,2]
[388646744,1759296672221,-2047.36,0.00024657,2]
[388646745,1759296672230,-546.08,0.00024657,2]
[388646746,1759296672240,-501.1155693,0.00024657,2]
[388646747,1759296672249,-243.04369135,0.00024657,2]
[388646748,1759296672259,-558.29,0.00024657,2]
[388646749,1759296672272,-500.0,0.00024657,2]
[388646750,1759296672294,-1360.53,0.00024657,2]
[388646751,1759296672304,-500.0,0.00024657,2]
[388646752,1759296672313,-2365.91,0.00024657,2]
[388646753,1759296672323,-500.0,0.00024657,2]
[388646754,1759296672332,-500.0,0.00024657,2]
[388646755,1759296672342,-561.63333223,0.00024657,2]
[388646756,1759296672352,-500.0,0.00024657,2]
[388646757,1759296672361,-3048.21,0.00024657,2]
[388646758,1759296672371,-1171.01,0.00024657,2]
[388646759,1759296672380,-527.29,0.00024657,2]
[388646760,1759296672390,-802.18,0.00024657,2]
[388646761,1759296672400,-500.0,0.00024657,2]
[388646762,1759296672409,-500.0,0.00024657,2]
[388646763,1759296672419,-500.0,0.00024657,2]
[388646764,1759296672437,-500.0,0.00024657,2]
[388646765,1759296672450,-2747.89,0.00024657,2]
[388646766,1759296672460,-804.96,0.00024657,2]
[388646767,1759296672470,-500.0,0.00024657,2]
[388646768,1759296672480,-500.0,0.00024657,2]
[388646769,1759296672491,-500.0,0.00024657,2]
[388646770,1759296672500,-2195.98,0.00024657,2]
[388646771,1759296672510,-500.0,0.00024657,2]
[388646772,1759296672521,-3284.56,0.00024657,2]
[388646773,1759296672531,-503.37,0.00024657,2]
[388646774,1759296672541,-500.0,0.00024657,2]
[388646775,1759296672550,-500.0,0.00024657,2]
[388646776,1759296672560,-1145.02,0.00024657,2]
[388646777,1759296672570,-1934.12,0.00024657,2]
[388646778,1759296672580,-2040.46,0.00024657,2]
[388646779,1759296672590,-798.66,0.00024657,2]
[388646780,1759296672601,-500.0,0.00024657,2]
[388646781,1759296672610,-501.82,0.00024657,2]
[388646782,1759296672621,-2940.77,0.00024657,2]
[388646783,1759296672631,-197.16592071,0.00024657,2]
[388646784,1759296672640,-4576.56,0.00024657,2]
[388646785,1759296672650,-500.0,0.00024657,2]
[388646786,1759296672660,-500.0,0.00024657,2]
[388646787,1759296672674,-1445.93,0.00024657,2]
[388646788,1759296672684,-1758.89,0.00024657,2]
[388646789,1759296672693,-500.0,0.00024657,2]
[388646790,1759296672703,-152.09568566,0.00024657,2]
[388646791,1759296672714,-3477.9,0.00024657,2]
[388646792,1759296672724,-500.0,0.00024657,2]
[388646793,1759296672734,-500.0,0.00024657,2]
[388646794,1759296672746,-518.94,0.00024657,2]
[388646795,1759296672756,-1140.85,0.00024657,2]
[388646796,1759296672766,-1848.71,0.00024657,2]
[388646797,1759296672776,-1534.95,0.00024657,2]
[388646798,1759296672786,-500.0,0.00024657,2]
[388646799,1759296672797,-901.38,0.00024657,2]
[388646800,1759296672808,-500.0,0.00024657,2]
[388646801,1759296672820,-500.0,0.00024657,2]
[388646802,1759296672831,-4413.22,0.00024657,2]
[388646803,1759296672843,-500.0,0.00024657,2]
[388646804,1759296672854,-500.0,0.00024657,2]
[388646805,1759296672863,-500.0,0.00024657,2]
[388646806,1759296672873,-1372.88,0.00024657,2]
[388646807,1759296672883,-500.0,0.00024657,2]
[388646808,1759296672892,-504.17367186,0.00024657,2]
[388646809,1759296672902,-500.0,0.00024657,2]
[388646810,1759296672912,-3397.58,0.00024657,2]
[388646811,1759296672923,-500.0,0.00024657,2]
[388646812,1759296672933,-505.02,0.00024657,2]
[388646813,1759296672943,-3652.05,0.00024657,2]
[388646814,1759296672952,-4150.56,0.00024657,2]
[388646815,1759296672962,-509.2,0.00024657,2]
[388646816,1759296672972,-939.27,0.00024657,2]
[388646817,1759296672982,-1018.37,0.00024657,2]
[388646818,1759296672991,-500.0,0.00024657,2]
[388646819,1759296673001,-1018.37,0.00024657,2]
[388646820,1759296673011,-1018.37,0.00024657,2]
[388646821,1759296673021,-1018.37,0.00024657,2]
[388646822,1759296673031,-1018.37,0.00024657,2]
[388646823,1759296673040,-1018.37,0.00024657,2]
[388646824,1759296673050,-1018.37,0.00024657,2]
[388646825,1759296673060,-4592.5,0.00024657,2]
[388646826,1759296673070,-1018.37,0.00024657,2]
[388646827,1759296673081,-500.0,0.00024657,2]
[388646828,1759296673092,-1018.37,0.00024657,2]
[388646829,1759296673102,-1018.37,0.00024657,2]
[388646830,1759296673113,-1018.37,0.00024657,2]
[388646831,1759296673124,-1018.37,0.00024657,2]
[388646832,1759296673134,-838.12,0.00024657,2]
[388646833,1759296673144,-1018.37,0.00024657,2]
[388646834,1759296673153,-1018.37,0.00024657,2]
[388646835,1759296673163,-1018.37,0.00024657,2]
[388646836,1759296673173,-500.0,0.00024657,2]
[388646837,1759296673183,-1518.24,0.00024657,2]
[388646838,1759296673192,-500.0,0.00024657,2]
[388646839,1759296673202,-1018.37,0.00024657,2]
[388646840,1759296673212,-1018.37,0.00024657,2]
[388646841,1759296673221,-1018.37,0.00024657,2]
[388646842,1759296673231,-500.0,0.00024657,2]
[388646843,1759296673240,-1018.37,0.00024657,2]
[388646844,1759296673250,-1018.37,0.00024657,2]
[388646845,1759296673260,-1018.37,0.00024657,2]
[388646846,1759296673269,-1018.37,0.00024657,2]
[388646847,1759296673279,-1018.37,0.00024657,2]
[388646848,1759296673289,-1018.59,0.00024657,2]
[388646849,1759296673299,-2689.94,0.00024657,2]
[388646850,1759296673308,-500.0,0.00024657,2]
[388646851,1759296673317,-885.08,0.00024657,2]
[388646852,1759296673327,-500.25,0.00024657,2]
[388646853,1759296673336,-3167.96,0.00024657,2]
[388646854,1759296673346,-886.56,0.00024657,2]
[388646855,1759296673356,-500.0,0.00024657,2]
[388646856,1759296673366,-500.0,0.00024657,2]
[388646857,1759296673375,-500.0,0.00024657,2]
[388646858,1759296673385,-500.0,0.00024657,2]
[388646859,1759296673395,-500.0,0.00024657,2]
[388646860,1759296673404,-500.0,0.00024657,2]
[388646861,1759296673414,-500.0,0.00024657,2]
[388646862,1759296673424,-500.0,0.00024657,2]
[388646863,1759296673433,-500.0,0.00024657,2]
[388646864,1759296673443,-500.0,0.00024657,2]
[388646865,1759296673452,-500.0,0.00024657,2]
[388646866,1759296673462,-358.77515171,0.00024657,2]
[388646867,1759296673471,-589.43,0.00024657,2]
[388646868,1759296673482,-500.0,0.00024657,2]
[388646869,1759296673493,-529.28,0.00024657,2]
[388646870,1759296673503,-628.92413052,0.00024657,2]
[388646871,1759296673514,-500.0,0.00024657,2]
[388646872,1759296673524,-1454.86,0.00024657,2]
[388646873,1759296673534,-633.88,0.00024657,2]
[388646874,1759296673544,-500.0,0.00024657,2]
[388646875,1759296673557,-1336.06,0.00024657,2]
[388646876,1759296673566,-500.0,0.00024657,2]
[388646877,1759296673576,-500.0,0.00024657,2]
[388646878,1759296673586,-3292.88,0.00024657,2]
[388646879,1759296673596,-709.2,0.00024657,2]
[388646880,1759296673606,-500.0,0.00024657,2]
[388646881,1759296673615,-500.0,0.00024657,2]
[388646882,1759296673625,-744.9,0.00024657,2]
[388646883,1759296673635,-2820.78,0.00024657,2]
[388646884,1759296673646,-777.93,0.00024657,2]
[388646885,1759296673657,-500.0,0.00024657,2]
[388646886,1759296673671,-500.0,0.00024657,2]
[388646887,1759296673680,-500.0,0.00024657,2]
[388646888,1759296673690,-2879.12,0.00024657,2]
[388646889,1759296673700,-500.0,0.00024657,2]
[388646890,1759296673711,-2552.71,0.00024657,2]
[388646891,1759296673722,-620.04014412,0.00024657,2]
[388646892,1759296673733,-3960.23,0.00024657,2]
[388646893,1759296673744,-885.46,0.00024657,2]
[388646894,1759296673755,-2068.97,0.00024657,2]
[388646895,1759296673766,-3689.64,0.00024657,2]
[388646896,1759296673775,-500.0,0.00024657,2]
[388646897,1759296673785,-2771.64,0.00024657,2]
[388646898,1759296673795,-500.0,0.00024657,2]
[388646899,1759296673805,-500.0,0.00024657,2]
[388646900,1759296673814,-2279.06,0.00024657,2]
[388646901,1759296673824,-500.0,0.00024657,2]
[388646902,1759296673834,-500.0,0.00024657,2]
[388646903,1759296673844,-651.28,0.00024657,2]
[388646904,1759296673854,-500.0,0.00024657,2]
[388646905,1759296673865,-500.0,0.00024657,2]
[388646906,1759296673875,-4078.26,0.00024657,2]
[388646907,1759296673887,-2778.38,0.00024657,2]
[388646908,1759296673896,-796.02,0.00024657,2]
[388646909,1759296673908,-500.0,0.00024657,2]
[388646910,1759296673921,-1545.47,0.00024657,2]
[388646911,1759296673932,-500.0,0.00024657,2]
[388646912,1759296673942,-500.0,0.00024657,2]
[388646913,1759296673951,-2694.5,0.00024657,2]
[388646914,1759296673961,-783.28,0.00024657,2]
[388646915,1759296673970,-500.0,0.00024657,2]
[388646916,1759296673980,-500.0,0.00024657,2]
[388646917,1759296673989,-480.84489532,0.00024657,2]
[388646918,1759296674143,-3514.66,0.00024657,2]
[388646919,1759296674153,-1587.45,0.00024657,2]
[388646920,1759296674164,-2021.31,0.00024657,2]
[388646921,1759296674173,-415.0,0.00024657,2]
[388646922,1759296674182,-500.0,0.00024657,2]
[388646923,1759296674192,-548.82,0.00024657,2]
[388646924,1759296674201,-500.0,0.00024657,2]
[388646925,1759296674211,-500.0,0.00024657,2]
[388646926,1759296674220,-500.0,0.00024657,2]
[388646927,1759296674229,-824.07,0.00024657,2]
[388646928,1759296674239,-2588.41,0.00024657,2]
[388646929,1759296674248,-500.0,0.00024657,2]
[388646930,1759296674257,-1040.91,0.00024657,2]
[388646931,1759296674267,-500.0,0.00024657,2]
[388646932,1759296674277,-4440.26,0.00024657,2]
[388646933,1759296674286,-500.0,0.00024657,2]
[388646934,1759296674296,-500.0,0.00024657,2]
[388646935,1759296674306,-500.0,0.00024657,2]
[388646936,1759296674315,-1107.24,0.00024657,2]
[388646937,1759296674325,-500.0,0.00024657,2]
[388646938,1759296674334,-702.61,0.00024657,2]
[388646939,1759296674345,-359.12771848,0.00024657,2]
[388646940,1759296674355,-500.0,0.00024657,2]
[388646941,1759296674365,-500.0,0.00024657,2]
[388646942,1759296674374,-3532.49,0.00024657,2]
[388646943,1759296674384,-632.63313075,0.00024657,2]
[388646944,1759296674394,-2512.63,0.00024657,2]
[388646945,1759296674404,-500.0,0.00024657,2]
[388646946,1759296674413,-500.0,0.00024657,2]
[388646947,1759296674422,-3108.67,0.00024657,2]
[388646948,1759296674432,-500.0,0.00024657,2]
[388646949,1759296674442,-300.0,0.00024657,2]
[388646950,1759296674451,-500.0,0.00024657,2]
[388646951,1759296674460,-573.99,0.00024657,2]
[388646952,1759296674470,-300.0,0.00024657,2]
[388646953,1759296674478,-2494.93,0.00024657,2]
[388646954,1759296674488,-500.0,0.00024657,2]
[388646955,1759296674497,-708.53,0.00024657,2]
[388646956,1759296674506,-500.0,0.00024657,2]
[388646957,1759296674516,-500.0,0.00024657,2]
[388646958,1759296674525,-500.0,0.00024657,2]
[388646959,1759296674534,-1003.87,0.00024657,2]
[388646960,1759296674543,-500.0,0.00024657,2]
[388646961,1759296674553,-742.55,0.00024657,2]
[388646962,1759296674562,-500.0,0.00024657,2]
[388646963,1759296674571,-500.0,0.00024657,2]
[388646964,1759296674580,-500.0,0.00024657,2]
[388646965,1759296674590,-500.0,0.00024657,2]
[388646966,1759296674599,-515.99,0.00024657,2]
[388646967,1759296674608,-500.0,0.00024657,2]
[388646968,1759296674618,-2938.24,0.00024657,2]
[388646969,1759296674627,-500.0,0.00024657,2]
[388646970,1759296674636,-500.0,0.00024657,2]
[388646971,1759296674645,-2467.13,0.00024657,2]
[388646972,1759296674654,-500.0,0.00024657,2]
[388646973,1759296674662,-2688.62,0.00024657,2]
[388646974,1759296674676,-500.0,0.00024657,2]
[388646975,1759296674685,-500.0,0.00024657,2]